bitfinex-derivatives/quotes_BTCF0:USTF0_20250514
["timestamp","ask_amount","ask_price","bid_price","bid_amount"]
[1747226273492,1.59588873,104080.0,104070.0,1e-07]
[1747226273683,2.04312873,104080.0,104070.0,1e-07]
[1747226278802,1.59588873,104080.0,104070.0,1e-07]
[1747226279095,2.04216873,104080.0,104070.0,1e-07]
[1747226280695,0.1921687,104070.0,104060.0,1.5]
[1747226280897,0.88714821,104070.0,104060.0,1.5]
[1747226281091,0.88714821,104070.0,104060.0,1.75808455]
[1747226281296,0.96472772,104070.0,104060.0,1.662]
[1747226282396,0.1922056,104050.0,104040.0,0.51789833]
[1747226282597,0.63058511,104050.0,104040.0,0.61929833]
[1747226282793,0.69448511,104050.0,104040.0,0.61929833]
[1747226283100,0.69448511,104050.0,104040.0,0.52057179]
[1747226283287,0.77206462,104050.0,104040.0,2.02057179]
[1747226283487,0.72498511,104050.0,104040.0,1.91475894]
[1747226283692,0.80256462,104050.0,104040.0,1.81166516]
[1747226283898,0.6474056,104050.0,104040.0,1.81466516]
[1747226284100,0.80256462,104050.0,104040.0,1.65266516]
[1747226284293,1.0282056,104050.0,104040.0,0.006]
[1747226284496,1.3082056,104050.0,104040.0,0.02024595]
[1747226284701,1.0082056,104050.0,104040.0,0.02024595]
[1747226284896,1.10382631,104050.0,104040.0,0.02024595]
[1747226285294,1.10482631,104050.0,104040.0,1.51724595]
[1747226285491,1.18240582,104050.0,104040.0,1.51724595]
[1747226285692,1.10482631,104050.0,104040.0,1.51424595]
[1747226285887,1.0992056,104050.0,104040.0,1.51424595]
[1747226286187,1.45678511,104050.0,104040.0,1.51424595]
[1747226286791,1.45678511,104050.0,104040.0,1.5]
[1747226287285,1.53436462,104050.0,104040.0,1.5]
[1747226287488,1.45678511,104050.0,104040.0,1.5]
[1747226287691,1.3792056,104050.0,104040.0,1.5]
[1747226287903,1.45678511,104050.0,104040.0,1.5]
[1747226288201,1.45678511,104050.0,104040.0,1.51425304]
[1747226288703,1.3792056,104050.0,104040.0,1.51425304]
[1747226288894,1.45678511,104050.0,104040.0,1.51425304]
[1747226289090,1.3792056,104050.0,104040.0,1.51425304]
[1747226289602,1.45678511,104050.0,104040.0,1.51425304]
[1747226291098,1.3792056,104050.0,104040.0,1.51425304]
[1747226291302,1.39358552,104050.0,104040.0,1.51425304]
[1747226291505,1.47116503,104050.0,104040.0,1.51425304]
[1747226292199,1.39358552,104050.0,104040.0,1.51425304]
[1747226292596,1.47116503,104050.0,104040.0,1.51425304]
[1747226293295,0.1922241,104040.0,104030.0,0.00192243]
[1747226293500,0.6442241,104040.0,104030.0,0.00192243]
[1747226293702,0.6442241,104040.0,104030.0,0.09803468]
[1747226294003,0.79938312,104040.0,104030.0,0.00192243]
[1747226294205,0.80938312,104040.0,104030.0,0.00192243]
[1747226294391,0.79938312,104040.0,104030.0,0.00192243]
[1747226294597,0.96938312,104040.0,104030.0,0.00192243]
[1747226295509,0.89180361,104040.0,104030.0,0.00292243]
[1747226295693,0.8142241,104040.0,104030.0,0.00292243]
[1747226295898,0.96938312,104040.0,104030.0,0.00292243]
[1747226298906,1.23806312,104040.0,104030.0,0.00292243]
[1747226299902,1.3463441,104040.0,104030.0,0.00292243]
[1747226300104,1.42392361,104040.0,104030.0,0.03072243]
[1747226300411,1.42396361,104040.0,104030.0,0.06362243]
[1747226300908,1.50154312,104040.0,104030.0,0.03582243]
[1747226301315,1.50154312,104040.0,104030.0,0.00292243]
[1747226301504,1.3463841,104040.0,104030.0,0.00292243]
[1747226301706,1.50130312,104040.0,104030.0,0.00292243]
[1747226303010,1.53580762,104040.0,104030.0,0.00292243]
[1747226303914,1.3806486,104040.0,104030.0,0.00292243]
[1747226304118,1.53580762,104040.0,104030.0,0.00292243]
[1747226304713,1.3806486,104040.0,104030.0,0.00292243]
[1747226305109,1.53580762,104040.0,104030.0,0.00292243]
[1747226305719,1.53580762,104040.0,104030.0,0.01720918]
[1747226306016,0.1922426,104030.0,104020.0,0.0913]
[1747226306206,0.72382211,104030.0,104020.0,0.2533]
[1747226306406,0.72382211,104030.0,104020.0,0.34942149]
[1747226307009,0.72382211,104030.0,104020.0,1.85142149]
[1747226307716,0.6462426,104030.0,104020.0,1.85142149]
[1747226307916,0.72382211,104030.0,104020.0,1.85142149]
[1747226308117,0.72382211,104030.0,104020.0,1.8590422]
[1747226309205,0.6462426,104030.0,104020.0,1.85342149]
[1747226309417,0.72382211,104030.0,104020.0,1.85342149]
[1747226309916,0.6462426,104030.0,104020.0,1.85342149]
[1747226310102,0.72382211,104030.0,104020.0,1.85342149]
[1747226311111,0.72382211,104030.0,104020.0,1.82282149]
[1747226311709,0.6462426,104030.0,104020.0,1.82282149]
[1747226312017,0.72382211,104030.0,104020.0,1.79502149]
[1747226312215,0.72382211,104030.0,104020.0,1.76212149]
[1747226313409,0.72382211,104030.0,104020.0,1.666]
[1747226313609,0.75382211,104030.0,104020.0,1.666]
[1747226313809,0.75382211,104030.0,104020.0,0.166]
[1747226314216,0.75382211,104030.0,104020.0,1.504]
[1747226315721,0.75382211,104030.0,104020.0,1.3794138]
[1747226316714,0.75382211,104030.0,104020.0,1.3286984]
[1747226318424,0.75382211,104030.0,104020.0,1.34307537]
[1747226318715,0.6762426,104030.0,104020.0,1.34307537]
[1747226318920,0.75382211,104030.0,104020.0,1.34307537]
[1747226319117,0.75382211,104030.0,104020.0,1.50507537]
[1747226320023,1.11462211,104030.0,104020.0,1.50507537]
[1747226320224,1.11462211,104030.0,104020.0,1.34307537]
[1747226321119,1.11462211,104030.0,104020.0,1.50507537]
[1747226322122,1.11462211,104030.0,104020.0,1.34307537]
[1747226323618,1.0370426,104030.0,104020.0,1.34307537]
[1747226323814,1.11462211,104030.0,104020.0,1.34307537]
[1747226324222,1.11462211,104030.0,104020.0,0.01437697]
[1747226325226,0.1922418,104020.0,104010.0,0.0009614]
[1747226325416,0.87380082,104020.0,104010.0,0.0009614]
[1747226325616,1.32896082,104020.0,104010.0,0.0009614]
[1747226326324,1.32896082,104020.0,104010.0,0.1629614]
[1747226327625,1.1738018,104020.0,104010.0,0.1629614]
[1747226327829,1.32896082,104020.0,104010.0,0.1629614]
[1747226329422,1.32896082,104020.0,104010.0,0.16858211]
[1747226331421,1.68976082,104020.0,104010.0,0.16858211]
[1747226337031,1.16460082,104020.0,104010.0,0.16858211]
[1747226337225,1.60710131,104020.0,104010.0,0.16858211]
[1747226337432,1.5295218,104020.0,104010.0,0.27423657]
[1747226337631,1.68456082,104020.0,104010.0,0.27423657]
[1747226337925,1.0094418,104020.0,104010.0,0.27423657]
[1747226338131,1.60682131,104020.0,104010.0,0.27423657]
[1747226338331,1.60654131,104020.0,104010.0,0.27423657]
[1747226339325,1.68412082,104020.0,104010.0,0.27423657]
[1747226341328,1.60654131,104020.0,104010.0,0.27423657]
[1747226342029,1.59522131,104020.0,104010.0,0.27423657]
[1747226342333,1.67280082,104020.0,104010.0,0.27423657]
[1747226343125,1.5176418,104020.0,104010.0,0.27423657]
[1747226343427,1.2630018,104020.0,104010.0,0.27423657]
[1747226343625,1.34054131,104020.0,104010.0,0.27423657]
[1747226344430,1.34054131,104020.0,104010.0,0.28423657]
[1747226345434,1.2629618,104020.0,104010.0,0.28423657]
[1747226345629,1.08702131,104020.0,104010.0,0.38037654]
[1747226346830,1.08702131,104020.0,104010.0,0.37475583]
[1747226349032,1.0094418,104020.0,104010.0,0.37475583]
[1747226349238,0.2236418,104020.0,104010.0,0.45233534]
[1747226349436,0.2236418,104020.0,104010.0,0.99104118]
[1747226349736,0.2236418,104020.0,104010.0,2.49104118]
[1747226349936,0.2236418,104020.0,104010.0,2.22682208]
[1747226350440,0.2236418,104020.0,104010.0,2.49666189]
[1747226350630,0.1922418,104020.0,104010.0,2.9203814]
[1747226350831,0.2883462,104030.0,104020.0,0.1922418]
[1747226351037,0.2883462,104030.0,104020.0,0.76062131]
[1747226351542,0.3213462,104030.0,104020.0,2.35676128]
[1747226352141,0.3213462,104030.0,104020.0,2.51876128]
[1747226352342,0.3233462,104030.0,104020.0,2.44118177]
[1747226352734,0.3233462,104030.0,104020.0,2.24893997]
[1747226353033,0.43362571,104030.0,104020.0,2.24893997]
[1747226353237,0.43562571,104030.0,104020.0,2.24893997]
[1747226353945,0.3580462,104030.0,104020.0,2.24893997]
[1747226354244,0.43562571,104030.0,104020.0,2.1219]
[1747226354546,0.46852571,104030.0,104020.0,2.1219]
[1747226354751,0.46852571,104030.0,104020.0,2.25083073]
[1747226356449,0.46852571,104030.0,104020.0,0.75083073]
[1747226357045,0.46852571,104030.0,104020.0,2.25083073]
[1747226358742,0.3909462,104030.0,104020.0,2.25083073]
[1747226358949,0.3580462,104030.0,104020.0,2.25083073]
[1747226360249,0.3910462,104030.0,104020.0,2.25083073]
[1747226361139,0.3910462,104030.0,104020.0,2.44869324]
[1747226361343,0.46862571,104030.0,104020.0,2.25645144]
[1747226361846,0.46862571,104030.0,104020.0,0.20762071]
[1747226362349,0.46862571,104030.0,104020.0,1.83155144]
[1747226362551,0.46862571,104030.0,104020.0,1.86255144]
[1747226363138,0.82942571,104030.0,104020.0,1.86255144]
[1747226363546,0.7518462,104030.0,104020.0,1.86255144]
[1747226363742,0.82942571,104030.0,104020.0,1.86255144]
[1747226364051,0.46862571,104030.0,104020.0,1.86255144]
[1747226364349,0.82942571,104030.0,104020.0,1.86255144]
[1747226365745,0.82942571,104030.0,104020.0,1.83475144]
[1747226365946,0.82942571,104030.0,104020.0,1.80375144]
[1747226366853,0.82942571,104030.0,104020.0,1.70762071]
[1747226367241,0.82942571,104030.0,104020.0,1.702]
[1747226368151,0.82942571,104030.0,104020.0,1.70762071]
[1747226373559,0.46862571,104030.0,104020.0,1.80375144]
[1747226373750,0.3429872,104030.0,104020.0,2.13167275]
[1747226374059,0.2772872,104030.0,104020.0,2.60015226]
[1747226374260,0.2772872,104030.0,104020.0,2.52257275]
[1747226374950,0.2772872,104030.0,104020.0,1.10015226]
[1747226375151,0.2442872,104030.0,104020.0,1.44288426]
[1747226375662,0.2753872,104030.0,104020.0,2.86530475]
[1747226383674,0.2753872,104030.0,104020.0,2.76917275]
[1747226384375,0.2753872,104030.0,104020.0,2.69159324]
[1747226384565,0.2753872,104030.0,104020.0,2.76917275]
[1747226385369,0.2442872,104030.0,104020.0,2.84675226]
[1747226386073,0.1962297,104030.0,104020.0,2.84675226]
[1747226388471,0.1962297,104030.0,104020.0,3.04157258]
[1747226389376,0.2276297,104030.0,104020.0,3.04157258]
[1747226391077,0.2276297,104030.0,104020.0,3.05507258]
[1747226392077,0.2276297,104030.0,104020.0,2.86025226]
[1747226394179,0.2276297,104030.0,104020.0,2.70509324]
[1747226394380,0.2276297,104030.0,104020.0,2.86025226]
[1747226398671,0.2596297,104030.0,104020.0,2.86025226]
[1747226398880,0.2596297,104030.0,104020.0,3.22105226]
[1747226400780,0.2596297,104030.0,104020.0,1.31929324]
[1747226400981,0.2596297,104030.0,104020.0,1.28919324]
[1747226401281,0.2915297,104030.0,104020.0,2.20829324]
[1747226401673,0.2915297,104030.0,104020.0,2.20267253]
[1747226402273,0.2915297,104030.0,104020.0,2.44225204]
[1747226402675,0.2915297,104030.0,104020.0,2.44787275]
[1747226403177,0.2915297,104030.0,104020.0,2.43437275]
[1747226403482,0.2915297,104030.0,104020.0,2.35679324]
[1747226403683,0.2915297,104030.0,104020.0,2.43437275]
[1747226404480,0.0993,104030.0,104020.0,2.88625226]
[1747226404686,0.02114689,104030.0,104020.0,3.12206377]
[1747226404871,0.02114689,104030.0,104020.0,3.04448426]
[1747226405675,0.02114689,104030.0,104020.0,3.38621139]
[1747226406293,0.02114689,104030.0,104020.0,1.88621139]
[1747226406674,0.02114689,104030.0,104020.0,3.38621139]
[1747226406880,0.002,104040.0,104030.0,0.1922233]
[1747226407080,0.002,104040.0,104030.0,1.47908232]
[1747226407283,0.002,104040.0,104030.0,1.53831837]
[1747226407589,0.002,104040.0,104030.0,1.6344491]
[1747226407777,0.0643,104040.0,104030.0,1.6344491]
[1747226407978,0.0673,104040.0,104030.0,1.6344491]
[1747226408288,0.0693,104040.0,104030.0,1.6344491]
[1747226408490,0.0693,104040.0,104030.0,1.5383291]
[1747226409186,0.0693,104040.0,104030.0,1.5518291]
[1747226409388,0.0693,104040.0,104030.0,1.3596058]
[1747226409687,0.0693,104040.0,104030.0,1.5518291]
[1747226410103,0.0693,104040.0,104030.0,1.74664942]
[1747226410986,0.0389,104040.0,104030.0,1.74664942]
[1747226411185,0.0389,104040.0,104030.0,1.86492449]
[1747226411784,0.0389,104040.0,104030.0,1.96104449]
[1747226412093,0.28968563,104070.0,104060.0,0.1921679]
[1747226412296,0.37072753,104070.0,104060.0,2.3320479]
[1747226412787,0.37072753,104070.0,104060.0,2.42816939]
[1747226413182,0.37072753,104070.0,104060.0,2.59016939]
[1747226413389,0.40122753,104070.0,104060.0,2.59016939]
[1747226413588,0.40522753,104070.0,104060.0,2.59016939]
[1747226413792,0.40922753,104070.0,104060.0,2.59016939]
[1747226414793,0.40922753,104070.0,104060.0,2.60478372]
[1747226415294,0.44142753,104070.0,104060.0,2.60478372]
[1747226415495,0.55826027,104070.0,104060.0,1.81273582]
[1747226415694,0.55826027,104070.0,104060.0,2.00490372]
[1747226415890,0.4399852,104070.0,104060.0,2.00490372]
[1747226416082,0.4399852,104070.0,104060.0,1.65073582]
[1747226418887,0.4399852,104070.0,104060.0,1.84290372]
[1747226419697,0.4399852,104070.0,104060.0,1.86746759]
[1747226420196,0.4399852,104070.0,104060.0,2.02946759]
[1747226420999,0.4399852,104070.0,104060.0,2.0350883]
[1747226421199,0.4399852,104070.0,104060.0,2.51416337]
[1747226421395,0.3919433,104070.0,104060.0,2.51416337]
[1747226421591,0.3919433,104070.0,104060.0,2.54436337]
[1747226426693,0.3919433,104070.0,104060.0,1.00436337]
[1747226426894,0.3919433,104070.0,104060.0,0.8860883]
[1747226427800,0.3919433,104070.0,104060.0,2.3860883]
[1747226428403,0.3919433,104070.0,104060.0,2.6251283]
[1747226433307,0.3919433,104070.0,104060.0,2.70273319]
[1747226434209,0.3919433,104070.0,104060.0,2.46369319]
[1747226434500,0.3919433,104070.0,104060.0,2.6204483]
[1747226434697,0.3919433,104070.0,104060.0,1.8331204]
[1747226434897,0.46954819,104070.0,104060.0,1.78830607]
[1747226435094,0.46954819,104070.0,104060.0,1.62630607]
[1747226436113,0.46954819,104070.0,104060.0,1.81847397]
[1747226436408,0.3919433,104070.0,104060.0,1.81847397]
[1747226437410,0.3919433,104070.0,104060.0,1.85157397]
[1747226438802,0.3919433,104070.0,104060.0,2.28997886]
[1747226439206,0.3919433,104070.0,104060.0,2.45197886]
[1747226439402,0.3919433,104070.0,104060.0,2.37437397]
[1747226439602,0.46954819,104070.0,104060.0,2.37437397]
[1747226440004,0.46954819,104070.0,104060.0,2.01357397]
[1747226440205,0.46954819,104070.0,104060.0,2.37437397]
[1747226440515,0.3919433,104070.0,104060.0,2.37437397]
[1747226441611,0.3919433,104070.0,104060.0,2.45197886]
[1747226441808,0.3919433,104070.0,104060.0,2.51487886]
[1747226442812,0.008,104070.0,104060.0,2.59248375]
[1747226443015,0.008,104070.0,104060.0,1.32684375]
[1747226443516,0.008,104070.0,104060.0,2.82684375]
[1747226444212,0.2001494,104070.0,104060.0,2.82684375]
[1747226444411,0.2001494,104070.0,104060.0,2.74923886]
[1747226444807,0.2001494,104070.0,104060.0,2.51487886]
[1747226445118,0.2319494,104070.0,104060.0,2.98275886]
[1747226445307,0.2319494,104070.0,104060.0,3.02337556]
[1747226446102,0.2001494,104070.0,104060.0,3.02337556]
[1747226446807,0.2001494,104070.0,104060.0,3.36469538]
[1747226447314,0.2319494,104070.0,104060.0,3.36469538]
[1747226447517,0.2319494,104070.0,104060.0,3.35907467]
[1747226448317,0.2319494,104070.0,104060.0,3.37257467]
[1747226448520,0.2319494,104070.0,104060.0,3.37819538]
[1747226449916,0.008,104070.0,104060.0,3.37819538]
[1747226450110,0.2001494,104070.0,104060.0,3.37819538]
[1747226450310,0.2001494,104070.0,104060.0,3.37787538]
[1747226451019,0.2001494,104070.0,104060.0,3.18305506]
[1747226452818,0.2333494,104070.0,104060.0,3.18305506]
[1747226454423,0.2333494,104070.0,104060.0,3.18213506]
[1747226457126,0.2333494,104070.0,104060.0,3.16863506]
[1747226459630,0.2333494,104070.0,104060.0,3.16301435]
[1747226460131,0.2333494,104070.0,104060.0,3.17651435]
[1747226460729,0.2333494,104070.0,104060.0,3.18213506]
[1747226461629,0.2333494,104070.0,104060.0,3.17651435]
[1747226462231,0.2333494,104070.0,104060.0,3.53731435]
[1747226462829,0.2647494,104070.0,104060.0,3.53731435]
[1747226463930,0.2974494,104070.0,104060.0,3.53731435]
[1747226465727,0.2974494,104070.0,104060.0,3.52975435]
[1747226466128,0.2974494,104070.0,104060.0,3.51625435]
[1747226467236,0.2974494,104070.0,104060.0,3.55320352]
[1747226468128,0.2974494,104070.0,104060.0,3.74802384]
[1747226469829,0.1461029,104080.0,104060.0,3.63344132]
[1747226469830,0.002,104080.0,104060.0,3.63344132]
[1747226470146,0.002,104080.0,104070.0,0.80362016]
[1747226470634,0.002,104080.0,104070.0,2.39970416]
[1747226470826,0.002,104080.0,104070.0,2.49579794]
[1747226471026,0.008,104080.0,104070.0,2.49579794]
[1747226471222,0.008,104080.0,104070.0,2.73895342]
[1747226471833,0.012,104080.0,104070.0,2.73895342]
[1747226472629,0.007,104080.0,104070.0,2.64286942]
[1747226472821,0.003,104080.0,104070.0,2.64286942]
[1747226473026,0.004,104080.0,104070.0,2.64286942]
[1747226475233,0.004,104080.0,104070.0,2.65636942]
[1747226479232,0.0363,104080.0,104070.0,2.65636942]
[1747226480644,0.0363,104080.0,104070.0,2.85118974]
[1747226480942,0.0363,104080.0,104070.0,2.85681045]
[1747226481745,0.0363,104080.0,104070.0,2.49601045]
[1747226481939,0.0363,104080.0,104070.0,3.21761045]
[1747226482638,0.0663,104080.0,104070.0,3.21761045]
[1747226487439,0.0972,104080.0,104070.0,3.21761045]
[1747226487639,0.0960406,104110.0,104100.0,0.1920941]
[1747226487835,0.320531,104110.0,104100.0,1.26145722]
[1747226488042,0.2244756,104110.0,104100.0,1.26145722]
[1747226488342,0.0324,104110.0,104100.0,1.51954177]
[1747226488547,0.2244756,104110.0,104100.0,1.51954177]
[1747226488743,0.2304756,104110.0,104100.0,1.51954177]
[1747226488947,0.2935756,104110.0,104100.0,1.43237865]
[1747226489248,0.2955756,104110.0,104100.0,1.38854177]
[1747226489638,0.2955756,104110.0,104100.0,2.88854177]
[1747226490549,0.2915756,104110.0,104100.0,2.88854177]
[1747226491337,0.2915756,104110.0,104100.0,2.77037865]
[1747226491541,0.2915756,104110.0,104100.0,2.85754177]
[1747226491736,0.2915756,104110.0,104100.0,3.08482177]
[1747226493352,0.2915756,104110.0,104100.0,3.04420335]
[1747226500163,0.2915756,104110.0,104100.0,2.96665865]
[1747226500465,0.2915756,104110.0,104100.0,3.04056335]
[1747226500767,0.2915756,104110.0,104100.0,2.96301865]
[1747226501064,0.2915756,104110.0,104100.0,3.04056335]
[1747226501866,0.2915756,104110.0,104100.0,3.18665092]
[1747226503459,0.2915756,104110.0,104100.0,2.46505092]
[1747226503658,0.2915756,104110.0,104100.0,3.18665092]
[1747226504768,0.2915756,104110.0,104100.0,3.21845092]
[1747226507170,0.2915756,104110.0,104100.0,3.38045092]
[1747226508169,0.2915756,104110.0,104100.0,3.21845092]
[1747226509472,0.2915756,104110.0,104100.0,3.21657092]
[1747226510770,0.2915756,104110.0,104100.0,3.07048335]
[1747226511173,0.2915756,104110.0,104100.0,3.23248335]
[1747226511376,0.2915756,104110.0,104100.0,2.51088335]
[1747226511568,0.2915756,104110.0,104100.0,3.15493865]
[1747226511771,0.2915756,104110.0,104100.0,3.23248335]
[1747226512172,0.2915756,104110.0,104100.0,3.07048335]
[1747226514775,0.2915756,104110.0,104100.0,3.21657092]
[1747226514974,0.2915756,104110.0,104100.0,3.24927092]
[1747226515276,0.2915756,104110.0,104100.0,3.41127092]
[1747226515975,0.2915756,104110.0,104100.0,3.48881562]
[1747226516173,0.0995,104110.0,104100.0,3.52071562]
[1747226516368,0.004,104110.0,104100.0,2.03421562]
[1747226516569,0.004,104110.0,104100.0,2.03983633]
[1747226516870,0.004,104110.0,104100.0,3.53983633]
[1747226517179,0.004,104110.0,104100.0,3.61738103]
[1747226517568,0.004,104110.0,104100.0,3.61176032]
[1747226517974,0.004,104110.0,104100.0,4.11176032]
[1747226518175,0.002,104110.0,104100.0,4.11276032]
[1747226518479,0.002,104110.0,104100.0,4.03521562]
[1747226519082,0.24351413,104120.0,104110.0,0.1920756]
[1747226519275,0.27561413,104120.0,104110.0,0.7272203]
[1747226519675,0.27561413,104120.0,104110.0,0.82327716]
[1747226520181,0.27661413,104120.0,104110.0,0.99877716]
[1747226521582,0.22859963,104120.0,104110.0,1.44861716]
[1747226521776,0.26029963,104120.0,104110.0,1.60891239]
[1747226521970,0.003,104120.0,104110.0,1.67295709]
[1747226522378,0.003,104120.0,104110.0,3.17295709]
[1747226522883,0.0927,104140.0,104130.0,0.1920387]
[1747226523083,0.0927,104140.0,104130.0,1.6032634]
[1747226523282,0.0927,104140.0,104130.0,1.73627676]
[1747226523480,0.0927,104140.0,104130.0,1.83232439]
[1747226523881,0.2847203,104140.0,104130.0,1.85158112]
[1747226524585,0.2877203,104140.0,104130.0,1.85158112]
[1747226525281,0.2907203,104140.0,104130.0,1.85158112]
[1747226527777,0.2907203,104140.0,104130.0,3.35158112]
[1747226528174,0.2907203,104140.0,104130.0,3.07152306]
[1747226528372,0.2907203,104140.0,104130.0,3.18958112]
[1747226529589,0.2907203,104140.0,104130.0,4.56958112]
[1747226530589,0.2907203,104140.0,104130.0,4.11950112]
[1747226530781,0.2907203,104140.0,104130.0,4.56662112]
[1747226534189,0.2907203,104140.0,104130.0,4.72862112]
[1747226543198,0.2907203,104140.0,104130.0,4.53452112]
[1747226543402,0.2907203,104140.0,104130.0,4.49395852]
[1747226544200,0.2907203,104140.0,104130.0,4.65595852]
[1747226547189,0.2907203,104140.0,104130.0,4.49395852]
[1747226548203,0.2907203,104140.0,104130.0,4.65595852]
[1747226549098,0.2907203,104140.0,104130.0,4.49395852]
[1747226549605,0.2907203,104140.0,104130.0,4.64004609]
[1747226549998,0.2907203,104140.0,104130.0,4.67164609]
[1747226550205,0.2907203,104140.0,104130.0,4.83364609]
[1747226556413,0.0987,104140.0,104130.0,4.83364609]
[1747226556609,0.2907203,104140.0,104130.0,4.83364609]
[1747226560307,0.2907203,104140.0,104130.0,4.88237884]
[1747226560506,0.0987,104140.0,104130.0,4.88237884]
[1747226560706,0.0674,104140.0,104130.0,4.88237884]
[1747226562018,0.0372,104140.0,104130.0,4.88237884]
[1747226563113,0.0674,104140.0,104130.0,4.88237884]
[1747226568722,0.0986,104140.0,104130.0,4.88237884]
[1747226579533,0.0372,104140.0,104130.0,4.9598743]
[1747226580836,0.0372,104140.0,104130.0,4.88237884]
[1747226581635,0.0372,104140.0,104130.0,4.96549501]
[1747226581839,0.0312,104140.0,104130.0,4.96549501]
[1747226582336,0.0312,104140.0,104130.0,4.88799955]
[1747226582637,0.0312,104140.0,104130.0,4.88237884]
[1747226583137,0.0312,104140.0,104130.0,4.89587884]
[1747226583435,0.0638,104140.0,104130.0,4.89587884]
[1747226586740,0.0638,104140.0,104130.0,4.81838338]
[1747226587044,0.0638,104140.0,104130.0,4.89587884]
[1747226589335,0.0638,104140.0,104130.0,4.9733743]
[1747226589739,0.0312,104140.0,104130.0,4.9733743]
[1747226590134,0.0612,104150.0,104140.0,0.1920203]
[1747226590435,0.00334077,104160.0,104150.0,0.26949736]
[1747226590636,0.00334077,104160.0,104150.0,1.17163736]
[1747226590936,0.0019,104160.0,104150.0,2.74913282]
[1747226591143,0.0019,104160.0,104150.0,2.91113282]
[1747226591333,0.0019,104160.0,104150.0,2.92964811]
[1747226591528,0.0039,104160.0,104150.0,2.92964811]
[1747226591729,0.032,104170.0,104160.0,0.1919834]
[1747226592035,0.032,104170.0,104160.0,1.86173432]
[1747226592229,0.001,104180.0,104160.0,1.84525092]
[1747226592435,0.031,104180.0,104170.0,1.13842046]
[1747226592944,0.031,104180.0,104170.0,1.17152046]
[1747226593143,0.031,104180.0,104170.0,1.42952199]
[1747226593343,0.094,104180.0,104170.0,1.42952199]
[1747226593538,0.094,104180.0,104170.0,1.44383787]
[1747226594237,0.1,104180.0,104170.0,1.44383787]
[1747226595241,0.1,104180.0,104170.0,1.58972739]
[1747226596343,0.1,104180.0,104170.0,3.08972739]
[1747226599146,0.1,104180.0,104170.0,2.94383787]
[1747226602254,0.1,104180.0,104170.0,3.30463787]
[1747226603354,0.1,104180.0,104170.0,2.58303787]
[1747226603553,0.1,104180.0,104170.0,3.30463787]
[1747226604349,0.1,104180.0,104170.0,3.22714241]
[1747226604652,0.1,104180.0,104170.0,3.30463787]
[1747226613268,0.1,104180.0,104170.0,3.14263787]
[1747226614065,0.1,104180.0,104170.0,3.30463787]
[1747226614769,0.0679,104180.0,104170.0,3.30463787]
[1747226615466,0.007,104180.0,104170.0,3.30463787]
[1747226615662,0.05157777,104200.0,104190.0,0.1919281]
[1747226615855,0.02300894,104230.0,104190.0,1.15071902]
[1747226616167,0.21486344,104230.0,104220.0,0.99096836]
[1747226616369,0.21486344,104230.0,104220.0,1.43396836]
[1747226616671,0.21486344,104230.0,104220.0,1.46686836]
[1747226616869,0.02300894,104230.0,104220.0,1.56282844]
[1747226617167,0.02700894,104230.0,104220.0,1.62372844]
[1747226617564,0.02700894,104230.0,104220.0,1.64147647]
[1747226617761,0.02400894,104230.0,104220.0,1.64147647]
[1747226617962,0.02500894,104230.0,104220.0,1.64147647]
[1747226619061,0.11730894,104230.0,104220.0,1.64147647]
[1747226620665,0.11730894,104230.0,104220.0,1.61117647]
[1747226621763,0.11730894,104230.0,104220.0,3.11117647]
[1747226627878,0.11730894,104230.0,104220.0,3.18867193]
[1747226628477,0.11730894,104230.0,104220.0,3.11117647]
[1747226628879,0.11730894,104230.0,104220.0,4.49117647]
[1747226632180,0.11730894,104230.0,104220.0,4.41368101]
[1747226632381,0.11730894,104230.0,104220.0,4.49117647]
[1747226634979,0.11730894,104230.0,104220.0,4.56867193]
[1747226637075,0.11730894,104230.0,104220.0,4.60177193]
[1747226641779,0.30916344,104230.0,104220.0,4.08127647]
[1747226642083,0.11730894,104230.0,104220.0,4.08127647]
[1747226642382,0.30916344,104230.0,104220.0,4.49025647]
[1747226642587,0.31478415,104230.0,104220.0,4.49025647]
[1747226643585,0.30916344,104230.0,104220.0,4.49025647]
[1747226643783,0.30916344,104230.0,104220.0,3.94008101]
[1747226643986,0.7326069,104230.0,104220.0,2.97596008]
[1747226644175,0.81711144,104230.0,104220.0,1.47596008]
[1747226644380,0.56711144,104230.0,104220.0,1.9250672]
[1747226644687,0.57273215,104230.0,104220.0,3.55381347]
[1747226645684,0.47678415,104230.0,104220.0,3.55381347]
[1747226646386,0.47678415,104230.0,104220.0,3.47631801]
[1747226647179,0.47678415,104230.0,104220.0,3.58701347]
[1747226647487,0.47116344,104230.0,104220.0,3.58701347]
[1747226647983,0.24900894,104230.0,104220.0,3.66450893]
[1747226648179,0.08700894,104230.0,104220.0,3.85680893]
[1747226648580,0.08700894,104230.0,104220.0,3.77931347]
[1747226648783,0.27886344,104230.0,104220.0,3.77931347]
[1747226649087,0.27886344,104230.0,104220.0,3.61731347]
[1747226649588,0.27886344,104230.0,104220.0,2.11731347]
[1747226650089,0.27886344,104230.0,104220.0,3.61731347]
[1747226650390,0.27886344,104230.0,104220.0,3.69480893]
[1747226651187,0.27886344,104230.0,104220.0,3.85680893]
[1747226651487,0.27886344,104230.0,104220.0,3.77931347]
[1747226653778,0.24836344,104230.0,104220.0,3.85680893]
[1747226654183,0.21686344,104230.0,104220.0,3.85680893]
[1747226654782,0.24816344,104230.0,104220.0,3.85680893]
[1747226655283,0.24816344,104230.0,104220.0,3.69480893]
[1747226655480,0.28056344,104230.0,104220.0,4.05879347]
[1747226656494,0.21686344,104230.0,104220.0,4.05879347]
[1747226657095,0.02500894,104230.0,104220.0,4.05879347]
[1747226657889,0.02500894,104230.0,104220.0,4.13628893]
[1747226658593,0.02500894,104230.0,104220.0,3.94763341]
[1747226659290,0.02500894,104230.0,104220.0,4.02834219]
[1747226660198,0.02500894,104230.0,104220.0,4.19034219]
[1747226664297,0.02500894,104230.0,104220.0,4.02834219]
[1747226665396,0.02500894,104230.0,104220.0,4.17423171]
[1747226666804,0.03062965,104230.0,104220.0,4.17423171]
[1747226667105,0.03062965,104230.0,104220.0,4.33623171]
[1747226667902,0.02500894,104230.0,104220.0,4.33623171]
[1747226672003,0.02500894,104230.0,104220.0,4.17164983]
[1747226676911,0.02500894,104230.0,104220.0,4.53244983]
[1747226677212,0.02475829,104240.0,104230.0,0.1918545]
[1747226677402,0.02475829,104240.0,104230.0,0.76600435]
[1747226677806,0.08785829,104240.0,104230.0,2.36195062]
[1747226678000,0.11795829,104240.0,104230.0,2.80307062]
[1747226678405,0.11895829,104240.0,104230.0,2.80307062]
[1747226678910,0.11795829,104240.0,104230.0,2.80307062]
[1747226679306,0.11895829,104240.0,104230.0,2.76255986]
[1747226679919,0.11895829,104240.0,104230.0,2.68522077]
[1747226680224,0.11795829,104240.0,104230.0,2.76255986]
[1747226681110,0.11795829,104240.0,104230.0,2.68522077]